Cogmind - Beta 14 @@@ ROGUE MODE // 2024.09.29 @ 15:15:33 Player: jimmyl Result: Destroyed by G-50 Soldier with Heavy Laser Performance ------------- Evolutions (2) 1000 Regions Visited (3) 600 Robots Destroyed (42) 210 Value Destroyed (1272) 1272 Prototype IDs (1) 20 Alien Tech Used (0) 0 Bonus (124) 124 TOTAL SCORE: 3226 Bonus ------- High Alert Combat Kills 124 Cogmind --------- Core Integrity 0/550 Matter 300/300 Energy 100/100 System Corruption 0% Temperature Cool (26) Movement Core (200) Ox3 Location -8/Materials Parts ------- > --- POWER (1) -------- (None) > --- PROPULSION (3) --- (None) > --- UTILITY (5) ------ Medium Storage Unit Signal Interpreter Improved Targeting Computer > --- WEAPON (2) ------- (None) > --- INVENTORY (10) --- Light Treads Light Treads Titanium Leg Titanium Leg Compact Wheel Peak State ------------ > --- POWER ------------ Nuclear Core > --- PROPULSION ------- Titanium Leg Titanium Leg > --- UTILITY ---------- Medium Storage Unit Signal Interpreter Improved Targeting Computer Hacking Suite > --- WEAPON ----------- Advanced Beam Cannon Heavy Assault Rifle > --- INVENTORY -------- Nuclear Core Light Treads Light Treads Titanium Leg Titanium Leg Wheel Compact Wheel Improved Heat Sink Particle Cannon Rocket Launcher [Rating: 23] Favorites ----------- Power Nuclear Core Engine Ion Engine Power Core Nuclear Core Propulsion Titanium Leg Leg Titanium Leg Wheel Wheel Utility Medium Storage Unit Device Improved Heat Sink Storage Medium Storage Unit Processor Improved Targeting Computer Hackware Hacking Suite Protection Core Shielding Weapon Heavy Assault Rifle Energy Gun Medium Laser Energy Cannon Advanced Beam Cannon Ballistic Gun Heavy Assault Rifle Launcher Grenade Launcher Build | -11 -10 -9 -8 ------- Run | Yrd Mat Mat Mat Slots Evolved 4 | . . 2 2 Power . | . . . . Propulsion 1 | . . . 1 Utility 3 | . . 2 1 Weapon . | . . . . Parts Attached 31 | . 1 23 7 Power 3 | . . 2 1 Engine 1 | . . 1 . Core 2 | . . 1 1 Reactor . | . . . . Propulsion 6 | . . 5 1 Treads . | . . . . Leg 5 | . . 5 . Wheel 1 | . . . 1 Hover . | . . . . Flight . | . . . . Utility 7 | . 1 6 . Device 2 | . . 2 . Storage 1 | . 1 . . Processor 2 | . . 2 . Hackware 1 | . . 1 . Protection 1 | . . 1 . Artifact . | . . . . Weapon 15 | . . 10 5 Energy Gun 1 | . . . 1 Energy Cannon 2 | . . 1 1 Ballistic Gun 8 | . . 7 1 Ballistic Cannon . | . . . . Launcher 4 | . . 2 2 Special Weapon . | . . . . Impact Weapon . | . . . . Slashing Weapon . | . . . . Piercing Weapon . | . . . . Special Melee Weapon . | . . . . Unidentified Prototypes 1 | . . 1 . Parts Lost 13 | . . 2 11 Power 3 | . . 1 2 Propulsion 3 | . . . 3 Utility 1 | . . . 1 Weapon 6 | . . 1 5 Highest Loss Streak 10 | . . 1 10 To Critical Strikes . | . . . . Average Slot Usage (%) 88 | . 85 91 76 Engine 5 | . 14 5 . Core 4 | . . 5 7 Leg 22 | . 28 22 16 Device 6 | . . 6 8 Storage 11 | . 14 11 9 Processor 14 | . . 16 18 Protection 3 | . . 4 . Energy Gun 2 | . 14 1 . Energy Cannon 5 | . . 5 8 Ballistic Gun 11 | . 14 12 6 Peak Build Rating 23 | . 7 23 23 Average Rating 15 | . 6 16 20 On Entrance 10 | 6 6 6 22 Naked Turns . | . . . . Heaviest Build 25 | 11 16 25 25 Greatest Support 34 | 20 20 34 34 Greatest Overweight (x) 3 | . . . 3 Average Overweight (x) . | . . . . Largest Inventory Capacity 10 | . 10 10 10 Average Capacity 9 | . 8 10 10 Most Carried 10 | . 7 10 10 Average Carried 7 | . 6 7 8 Final Capacity 10 | 8 10 10 10 Final Carried 9 | 6 7 9 5 Class Distribution -------------------- 85% | Mutant 14% | Scavenger-Mutant Dominant Class ---------------- Mutant | -10/Materials Mutant | -9/Materials Mutant | -8/Materials Resources | -11 -10 -9 -8 ----------- Run | Yrd Mat Mat Mat Matter Collected 896 | 200 11 551 134 Remotely . | . . . . Salvage Created 1462 | . 94 1077 291 Parts 85 | . 3 62 20 Haulers Intercepted 1 | . . 1 . Recyclers Shooed 2 | . . 1 1 Parts Field Recycled . | . . . . Retrieved Matter . | . . . . Parts Self-Destructed . | . . . . Prevented . | . . . . Kills | -11 -10 -9 -8 ------- Run | Yrd Mat Mat Mat Combat Hostiles Destroyed 33 | . 2 24 7 Guns 16 | . 2 12 2 Cannons 8 | . . 7 1 AOE 8 | . . 5 3 Classes Destroyed 10 | . 1 8 1 Worker 2 | . . 1 1 Hauler 1 | . . 1 . Recycler 1 | . . 1 . Operator 2 | . . 2 . Watcher 3 | . . 3 . Swarmer 6 | . . 6 . Grunt 19 | . 2 12 5 Duelist 1 | . . 1 . Sentry 6 | . . 5 1 Hunter 1 | . . . 1 Best Kill Streak 5 | . 1 4 5 Combat Bots Only 4 | . 1 3 4 Max Kills in Single Turn 2 | . 1 2 2 Gunslinging . | . . . . Exploded 2 | . . 2 2 Melee . | . . . . Uniques/NPCs Destroyed . | . . . . Combat | -11 -10 -9 -8 -------- Run | Yrd Mat Mat Mat Hostile Shots Fired 274 | . 13 114 147 Missed 83 | . . 41 42 Damage Taken 2787 | . 174 985 1628 Core 784 | . 26 195 563 Absorbed by Shields . | . . . . Redirected to Shielding 22 | . . 22 . Core Remaining (%) 80 | 100 89 51 . Volleys Fired 125 | . 12 87 26 Largest 2 | . 2 2 2 Hottest 131 | . 70 91 131 Shots Fired 217 | . 23 149 45 Gun 147 | . 23 105 19 Cannon 57 | . . 37 20 Launcher 13 | . . 7 6 Special . | . . . . Kinetic 125 | . 12 98 15 Thermal 79 | . 11 44 24 Explosive 13 | . . 7 6 Electromagnetic . | . . . . Robot Hit Streak 10 | . 4 10 9 Robot Miss Streak 3 | . 3 2 3 Penetration Max . | . . . . Secondary Targets 1 | . . 1 . Max Gunslinging Chain 1 | . . 1 . Shots Hit Robots 142 | . 13 94 35 Core Hits 67 | . 4 47 16 Critical Kills 1 | . 1 . . Critical Parts Destroyed . | . . . . Critical Strikes 2 | . 2 . . Burn 1 | . 1 . . Destroy 1 | . 1 . . Melee Attacks . | . . . . Impact . | . . . . Slashing . | . . . . Piercing . | . . . . Sneak Attacks . | . . . . Combat Hostiles . | . . . . Follow-up Attacks . | . . . . Damage Inflicted 3146 | . 141 1949 1056 Guns 1358 | . 141 949 268 Cannons 898 | . . 573 325 Explosions 866 | . . 403 463 Melee . | . . . . Ramming 24 | . . 24 . Kinetic 1151 | . 77 874 200 Thermal 1105 | . 64 648 393 Explosive 866 | . . 403 463 Electromagnetic . | . . . . Impact . | . . . . Slashing . | . . . . Piercing . | . . . . Highest Corruption 2 | . 2 . . Average Corruption 1 | . 1 . . Corruption Purged . | . . . . Corruption Blocked . | . . . . Overload Shots . | . . . . Overflow Damage 49 | . . 42 7 Projectiles 12 | . . 12 . Explosions 37 | . . 30 7 Melee . | . . . . Knockbacks . | . . . . Impact . | . . . . Kinetic . | . . . . Secondary . | . . . . Self-Inflicted Damage 78 | . . 39 39 Shots 2 | . . 1 1 Rammed . | . . . . Targets Rammed 7 | . . 7 . Kicked 7 | . . 7 . Crushed . | . . . . Highest Temperature 262 | . 144 54 262 Average Temperature 48 | . 64 9 91 Received Heat Transfer 1233 | . 102 357 774 Siege Activations . | . . . . Robots Corrupted . | . . . . Combat Hostiles . | . . . . Parts Fried . | . . . . Impact Corruptions . | . . . . Robots Melted 1 | . . . 1 Combat Hostiles 1 | . . . 1 Parts Melted 3 | . 1 1 1 Heat Transferred 2257 | . 259 1258 740 Parts Sabotaged . | . . . . Parts Stolen . | . . . . Parts Stripped . | . . . . Power Chain Reactions . | . . . . Alert | -11 -10 -9 -8 ------- Run | Yrd Mat Mat Mat Peak Influence 592 | . 65 592 483 Initial 249 | . . 27 249 Average 351 | . 47 395 366 Maximum Alert Level 2 | . . 2 2 Low Security (%) 19 | . 100 10 . Level 1 22 | . . 21 48 Level 2 58 | . . 67 51 Level 3 . | . . . . Level 4 . | . . . . Level 5 . | . . . . High Security . | . . . . Max Security . | . . . . Squads Dispatched 7 | . 1 4 2 Investigation 2 | . . 2 . Extermination . | . . . . Reinforcement 4 | . 1 2 1 Assault . | . . . . Garrison 1 | . . . 1 Intercept . | . . . . Searches Triggered . | . . . . Construction Impeded 1 | . . . 1 Haulers Reinforced . | . . . . Active Scanning Responses . | . . . . Cargo Convoy Interrupts . | . . . . Stealth | -11 -10 -9 -8 --------- Run | Yrd Mat Mat Mat Distress Signals 4 | . . 2 2 Communications Jammed . | . . . . Distress Signals . | . . . . Times Spotted 63 | . 5 40 18 Peak Tracking Total 12 | . 3 4 12 Tactical Retreats 4 | . . 3 1 Traps | -11 -10 -9 -8 ------- Run | Yrd Mat Mat Mat Traps Triggered 2 | . 2 . . Indirectly . | . . . . Trap Hack Attempts . | . . . . Triggered . | . . . . Disarmed . | . . . . Reprogrammed . | . . . . Reused . | . . . . Traps Extracted . | . . . . Installed . | . . . . Triggered . | . . . . Machines | -11 -10 -9 -8 ---------- Run | Yrd Mat Mat Mat Machines Disabled 1 | . . 1 . Max in Single Turn 1 | . . 1 . Machines Repaired . | . . . . Machines Dismantled . | . . . . Machines Sabotaged . | . . . . Overloaded Fab Kills . | . . . . Hacking | -11 -10 -9 -8 --------- Run | Yrd Mat Mat Mat Machines Accessed 6 | . . 6 . Terminals 6 | . . 6 . Fabricators . | . . . . Repair Stations . | . . . . Recycling Units . | . . . . Scanalyzers . | . . . . Garrison Access . | . . . . Total Hacks 16 | . . 16 . Successful 2 | . . 2 . Failed 14 | . . 14 . Catastrophic 5 | . . 5 . Database Lockouts . | . . . . Manual 11 | . . 11 . Terminals 16 | . . 16 . Fabricators . | . . . . Repair Stations . | . . . . Recycling Units . | . . . . Scanalyzers . | . . . . Garrison Access . | . . . . Terminal Hacks 2 | . . 2 . Branch Access Points 1 | . . 1 . Terminal Index 1 | . . 1 . Fabricator Hacks . | . . . . Repair Station Hacks . | . . . . Recycling Unit Hacks . | . . . . Scanalyzer . | . . . . Garrison Access Hacks . | . . . . Unauthorized Hacks . | . . . . Terminals . | . . . . Fabricators . | . . . . Repair Stations . | . . . . Recycling Units . | . . . . Scanalyzers . | . . . . Garrison Access . | . . . . Data Cores Recovered . | . . . . Used . | . . . . Hacking Detections 6 | . . 6 . Full Trace Events 4 | . . 4 . Feedback Events . | . . . . Feedback Blocked . | . . . . Robot Schematics Acquired . | . . . . Robots Built . | . . . . Authchips . | . . . . Time . | . . . . Total Robot Build Rating . | . . . . Part Schematics Acquired . | . . . . Parts Built . | . . . . Authchips . | . . . . Time . | . . . . Total Part Build Rating . | . . . . Parts Repaired . | . . . . Time . | . . . . Parts Recycled . | . . . . Recycled Matter . | . . . . Retrieved Matter . | . . . . Retrieved Components . | . . . . Parts Scanalyzed . | . . . . Part Schematics Acquired . | . . . . Parts Damaged . | . . . . Bothacking | -11 -10 -9 -8 ------------ Run | Yrd Mat Mat Mat Used RIF Installer . | . . . . Robots Hacked . | . . . . Non-combat . | . . . . Combat . | . . . . Robot Hacks Applied . | . . . . Relay Couplers Released . | . . . . Fabnet Peak Effective % . | . . . . Robots Rewired . | . . . . Allies Hacked . | . . . . Hacks Repelled . | . . . . Allies | -11 -10 -9 -8 -------- Run | Yrd Mat Mat Mat Total Allies . | . . . . Largest Group . | . . . . Highest-Rated Group . | . . . . Highest-Rated Ally . | . . . . Total Orders . | . . . . Ally Attacks . | . . . . Total Damage . | . . . . Kills . | . . . . Allies Corrupted . | . . . . Allies Melted . | . . . . Intel | -11 -10 -9 -8 ------- Run | Yrd Mat Mat Mat Robot Analysis Total . | . . . . Derelict Logs Recovered . | . . . . Drone Launches . | . . . . Drone Recoveries . | . . . . Exploration | -11 -10 -9 -8 ------------- Run | Yrd Mat Mat Mat Turns Passed 1458 | . 170 1118 170 Spaces Moved 811 | 1 112 640 58 Core 4 | . . . 4 Treads . | . . . . Legs 798 | 1 112 640 45 Wheels 9 | . . . 9 Hover . | . . . . Flight . | . . . . Fastest Speed 80 | 120 120 120 80 Average Speed 124 | 120 120 124 127 Slowest Speed 200 | 120 120 130 200 Overloaded Moves . | . . . . Propulsion Burnouts . | . . . . Robots Hopped . | . . . . Cave-ins Triggered . | . . . . Exploration Rate (%) 22 | 2 23 54 11 Regions Visited 3 Branch Regions . Pre-discovered Areas . | . . . . Known Exits Taken 1 | . . 1 . Unknown Exits Taken 2 | 1 1 . . Scrap Searched . | . . . . Spaces Dug . | . . . . Terrain Destroyed 106 | . . 49 57 Melee . | . . . . Projectile . | . . . . AOE 106 | . . 49 57 Terrain Rammed . | . . . . Walls Destroyed . | . . . . Machines Disabled . | . . . . Actions | -11 -10 -9 -8 --------- Run | Yrd Mat Mat Mat Total 1043 | . 127 808 108 Wait 47 | . 1 30 16 Move 808 | . 111 639 58 Hop . | . . . . Pick Up 9 | . 1 7 1 Fast Attach 11 | . 1 10 . Attach 9 | . . 4 5 Detach 1 | . . 1 . Swap 11 | . . 9 2 Drop 15 | . 1 14 . Fire 125 | . 12 87 26 Melee . | . . . . Ram . | . . . . Kick 7 | . . 7 . Crush . | . . . . Escape Stasis . | . . . . Rewire . | . . . . Trap . | . . . . Miscellaneous . | . . . . Route ------- -11/Scrapyard -10/Materials -9/Materials (discovered 4 exits: *Mat x2 / *Min x2) -8/Materials History --------- Turn | Location | Event 1 | -11/Scrapyard | Discovered new exit (range 0) 1 | -11/Scrapyard | Entered Materials 157 | -10/Materials | Discovered new exit (range 13) 171 | -10/Materials | Entered another Materials area 171 | -9/Materials | Evolved 2 slots: Utility x2 339 | -9/Materials | Build established: Mutant 352 | -9/Materials | Discovered new exit (range 7) 588 | -9/Materials | Discovered new exit (range 14) 711 | -9/Materials | Identified exit to Materials 1092 | -9/Materials | Discovered new exit (range 13) 1151 | -9/Materials | Identified exit to Mines 1289 | -9/Materials | Entered another Materials area 1289 | -8/Materials | Evolved 2 slots: Propulsion x1, Utility x1 1382 | -8/Materials | Garrison activated, responded to threat 1447 | -8/Materials | Core integrity fell below 50% 1454 | -8/Materials | Core integrity fell below 20% 1459 | -8/Materials | Destroyed by G-50 Soldier with Heavy Laser Last Messages --------------- 01439_ Slug penetrates G-47 Trooper. 01439_ U-05 Engineer lays Concrete. 01440_ Melted Assault Rifle. 01441_ H-55 Commando heat damages Gauss Rifle. 01441_ Titanium Leg destroyed. 01441_ U-05 Engineer lays Concrete. 01441_ Nuclear Core destroyed. 01442_ U-05 Engineer lays Concrete. 01444_ Pulse Rifle destroyed. 01444_ U-05 Engineer lays Concrete. 01445_ H-55 Commando heat spikes uncontrollably. 01445_ Imp. Heat Sink destroyed. 01445_ Critical hit (Burn: +37). 01445_ U-05 Engineer builds a Wall. 01446_ H-55 Commando heat damages core (-9). 01446_ Particle Cannon destroyed. 01448_ Acquired 24 matter. 01448_ Critical hit (Burn: +37). 01451_ Wheel destroyed. 01451_ U-05 Engineer lays Concrete. Map ----- +----------------------------------------------------+ | ?????????????????????????????????????????????????? | | ?????????????????????????????????????????????????? | | ?????????????????????????????????????????????????? | | ?????????????????????????????????????????????????? | | ?????????????????????????????????????????????????? | | ?????????????????????????????????????????????????? | | ?????????????????????????????????????????????????? | | ???????????????????????????? [ ??????????????????? | | ??????????????????????????? ??????????????????? | | ??????????????????????????? ??????????????????? | | ???????????????????????????# ??????????????????? | | ???????????????????????????# #?????????????????? | | ???????????????????????????# #?????????????????? | | ???????????????????????????# +?????????????????? | | ???????????????????????????# #?????????????????? | | ???????????????????????????# #?????????????????? | | ???????????????????????????# #?????????????????? | | ???????????????????????????# #?????????????????? | | ???????????????????????????# #?????????????????? | | ???????????????????????????# #??########???????? | | ??????????????????########## #??#]][[!!#????#??? | | ??????????????????# # #??#]][[!!#?? #??? | | ??????????????????# """ # #??# ## ##?? | | ??????????????????# [ """ # #### g # #?? | | ??????????????????# """ # % g #?? | | ??????????????????#! @ ; gg u +?? | | ??????????????????# """# gg Y #?? | | ??????????????????# R"# ##### # #?? | | ??????????????????# """# #???# # ## #### | | ??????????????????# # #???# #?#### # # | | ??????????????????########## #???# #????# # | | ??????????????????????????? #####+###### | | ?????????????????????????? ## = # # | | ????????????????????????? ## # # # | | ????????????????????????######### # # # | | ????????????????????????????????# = | | ????????????????????????????????# """ """%# | | ????????????????????????????????# """ """[![ | | ????????????????????????????????# """ """ !! # | | ????????????????????????????????# !=== ##? | | ????????????????????????????????##########= #?? | | ?????????????????????????????????# #### ##?? | | ?????????????????????????????????# #??? | | ?????????????????????????????????# #??? | | ?????????????????????????????????# #??? | | ?????????????????????????????????# ########??? | | ?????????????????????????????????## ##?????????? | | ??????????????????????????????????# #??????????? | | ??????????????????????????????????# #??????????? | | ??????????????????????????????????# #??????????? | +----------------------------------------------------+ Best States ------------- Heat Dissipation 45 Energy Generation 14 Energy Capacity 250 Matter Stores 300 Matter Capacity 300 Sight Range 16 Terrain Scan Density 10 Core Shielding 20 Evasion (%) 55 Targeting Accuracy 6 Offensive Hacking 10 Item Schematics ----------------- None Robot Schematics ------------------ None Fabricated ------------ Nothing Alien Tech Used ----------------- None Achievements -------------- None Challenges ------------ None Game ------ Seed ShieldWeldingInterpreter Manual? 0 Play Time 00:11:30 Cumulative 138.2 hours Start 2024.09.29 @ 15:05:31 End 2024.09.29 @ 15:15:33 Sessions 1 Manual Loads 0 Difficulty Rogue Special Mode None Game No. 225 Rogue 224 Adventurer 1 Explorer 0 Win Type - Total 2 Types 2/0/0/0/0/0/0/0/0 Lore% 71 Gallery% 69 Achievement% 51 Wizard Run 0 Options --------- Layout 1 ASCII 0 Keyboard 0 Movement Mouse Keybinds 0 Fullscreen 2 Font 20/SmallcapsGlow Map View 54x42 Zoom Use 0% Tactical HUD 1 Map Filters NONE Filters NONE Steam 0 RUN: 76146b86-7a63-4d14-b3d6-749f72b69a39